{"text_format":"1","workbook":"xlsx","n_sheets":3,"sheets":["GM aktas","Suvestine","Darbinis"],"not_rendered":{"charts":0,"images":2,"macros":1,"external_links":0,"defined_names":34,"comments":1,"pivot_tables":0},"unopened":[],"bounds":{"document_bytes":16777216,"sheet_cells":100000,"rows_first":2000,"rows_last":500,"rows_between":2000,"halvings":0,"cell_chars":16384,"cell_head_chars":4096},"cells_cut":0,"cells_raw":0,"read":"whole","date_system":"1900"}

{"sheet":"GM aktas","index":0,"n_rows":169,"n_cols":16,"rows_kept":169,"cut":false,"hidden":false,"merged":[[160,0,160,5],[1,0,1,5],[2,0,2,5],[3,0,3,5],[17,2,17,3],[19,2,19,3],[7,2,7,3],[9,2,9,3],[11,2,11,3],[13,2,13,3],[15,2,15,3],[16,2,16,3]]}
[null,null,null,null,null,null,"Priedas Nr. 3"]
["GRĮŽTAMŲJŲ MEDŽIAGŲ AKTAS"]
["Tinkamoms grįžtamosioms medžiagoms"]
["Akto forma galioja iki 2025.09.30"]
[]
[]
[]
["1.","Rangovas","pasirinkti",null,null,null,null,null,null,null,null,null,null,null,{"$f":"IF(C8=\"pasirinkti\",1,0)","v":1}]
[]
["2.","Rangos darbų sutarties Nr.","Įveskite Sutarties Nr.",null,null,null,null,null,null,null,null,null,null,null,{"$f":"IF(C10=\"pasirinkti\",1,0)","v":0}]
[]
["3.","Rangos darbų užsakymo Nr. (iš TIVIS)","Užpildyti",null,null,null,null,null,null,null,null,null,null,null,{"$f":"IF(C12=\"užpildyti\",1,0)","v":1}]
[]
["4.","Objekto pavadinimas pagal TIVIS:","Užpildyti",null,null,null,null,null,null,null,null,null,null,null,{"$f":"IF(C14=\"užpildyti\",1,0)","v":1}]
[]
["5.","Investicinis Nr./Darbų Nr.  (iš TIVIS)","Užpildyti",null,null,null,null,null,null,null,null,null,null,null,1]
["6.","Objekto Nr. (iš TIVIS)","Užpildyti"]
["7.","Grįžtamųjų medžiagų atsiradimo priežastis: ","pasirinkti",null,null,null,null,null,null,null,null,null,null,null,{"$f":"IF(C18=\"pasirinkti\",1,0)","v":1}]
[]
["8.","GM akto pateikimo data:","202x-xx-xx",null,null,null,null,null,null,null,null,null,null,null,{"$f":"IF(C20=\"202x-XX-XX\",1,IF(C20>TODAY(),1,0))","v":1}]
[null,null,null,null,null,null,null,null,null,null,null,null,null,null,null,{"$f":"SUM(O8:O20,O26:O156,O164,O167)","v":8}]
[]
[]
[]
["Eilės Nr.","Prekės pavadinimas","Markė, modelis"," Pastabos","Mato vnt.","Faktiškai perduotas kiekis ","Inventorinis Nr."]
[1,"G/b stiebai ir metalinės atramos*","S110-34,3","geros techninės būklės","vnt.",null,null,{"$f":"IF($C$18=\"2525002 Įrenginių likvidavimas\",IF(F26=\"\",\"\",IF(F26=0,IF(F26<>\"\",\"\"),IF(F26<>\"\",IF(G26<>\"\",\"\",\"Suveskite Inventorinį\"),\"\"))),\"\")","v":""},null,null,null,null,null,null,{"$f":"IF(H26=\"Suveskite Inventorinį\",1,0)","v":0}]
[2,"G/b stiebai ir metalinės atramos*","S110-3,5","geros techninės būklės","vnt.",null,null,{"$f":"IF($C$18=\"2525002 Įrenginių likvidavimas\",IF(F27=\"\",\"\",IF(F27=0,IF(F27<>\"\",\"\"),IF(F27<>\"\",IF(G27<>\"\",\"\",\"Suveskite Inventorinį\"),\"\"))),\"\")","v":""},null,null,null,null,null,null,{"$f":"IF(H27=\"Suveskite Inventorinį\",1,0)","v":0}]
[3,"G/b stiebai ir metalinės atramos*","S130-68,6","geros techninės būklės","vnt.",null,null,"",null,null,null,null,null,null,0]
[4,"G/b stiebai ir metalinės atramos*","S130-40","geros techninės būklės","vnt.",null,null,"",null,null,null,null,null,null,0]
[5,"G/b stiebai ir metalinės atramos*","S96-21,6","geros techninės būklės","vnt.",null,null,"",null,null,null,null,null,null,0]
[6,"G/b stiebai ir metalinės atramos*","S96-30,3","geros techninės būklės","vnt.",null,null,"",null,null,null,null,null,null,0]
[7,"G/b stiebai ir metalinės atramos*","S90-19,6","geros techninės būklės","vnt.",null,null,"",null,null,null,null,null,null,0]
[8,"G/b stiebai ir metalinės atramos*","S90-10,8","geros techninės būklės","vnt.",null,null,"",null,null,null,null,null,null,0]
[9,"G/b stiebai ir metalinės atramos*","S90-19,8","geros techninės būklės","vnt.",null,null,"",null,null,null,null,null,null,0]
[10,"G/b stiebai ir metalinės atramos*","S90-30,3","geros techninės būklės","vnt.",null,null,"",null,null,null,null,null,null,0]
[11,"G/b stiebai ir metalinės atramos*","S90-21,6","geros techninės būklės","vnt.",null,null,"",null,null,null,null,null,null,0]
[12,"35 kV metalinės cinkuotos kampinės–inkarinės atramos","UAP35-6 ir/arba analogas","cinkuotos, be cinko sluoksnio irimo židinių, be defektų","vnt.",null,null,"",null,null,null,null,null,null,0]
[13,"35 kV metalinės cinkuotos kampinės–inkarinės atramos","U110-4 ir/arba analogas","cinkuotos, be cinko sluoksnio irimo židinių, be defektų","vnt.",null,null,"",null,null,null,null,null,null,0]
[14,"Viršūnės*","T","cinkuotos, be cinko sluoksnio irimo židinių","vnt.",null,null,"",null,null,null,null,null,null,0]
[15,"Viršūnės*","TK-9","cinkuotos, be cinko sluoksnio irimo židinių","vnt.",null,null,"",null,null,null,null,null,null,0]
[16,"Viršūnės*","TK-9A","cinkuotos, be cinko sluoksnio irimo židinių","vnt.",null,null,"",null,null,null,null,null,null,0]
[17,"Traversos*","T","cinkuotos, be cinko sluoksnio irimo židinių","vnt.",null,null,"",null,null,null,null,null,null,0]
[18,"Traversos*","TK-9","cinkuotos, be cinko sluoksnio irimo židinių","vnt.",null,null,"",null,null,null,null,null,null,0]
[19,"Traversos*","TK-9A","cinkuotos, be cinko sluoksnio irimo židinių","vnt.",null,null,"",null,null,null,null,null,null,0]
[20,"Traversos*","T-2","cinkuotos, be cinko sluoksnio irimo židinių","vnt.",null,null,"",null,null,null,null,null,null,0]
[21,"Traversos*","K-2 (I-2)","cinkuotos, be cinko sluoksnio irimo židinių","vnt.",null,null,"",null,null,null,null,null,null,0]
[22,"Traversos*","Ti-1","cinkuotos, be cinko sluoksnio irimo židinių","vnt.",null,null,"",null,null,null,null,null,null,0]
[23,"Ramsčio konstrukcijos*","PTM-2,7","cinkuotos, be cinko sluoksnio irimo židinių","vnt.",null,null,"",null,null,null,null,null,null,0]
[24,"Ramsčio konstrukcijos*","PTM-1,1","cinkuotos, be cinko sluoksnio irimo židinių","vnt.",null,null,"",null,null,null,null,null,null,0]
[25,"Metalo konstrukcijos komplektas","ST 100-400 kVA","Ne senesnis nei 2005 m. įrengimo. Tinkamos naudoti, be didelės korozijos.\nPerduodamas pagal pridėtą atmintinę (priedas Nr.6). Perduodant prie Grįžtamųjų medžiagų akto supildomas ir pridedamas priedas Nr. 2 \" ST 100-400 kVA\"","komplektas",null,null,"",null,null,null,null,null,null,0]
[26,"Metalo konstrukcijos komplektas","ST 25-63 kVA (su 10 kV saugikliais)","Ne senesnis nei 2005 m. įrengimo. Tinkamos naudoti, be didelės korozijos.\nPerduodamas pagal pridėtą atmintinę (priedas Nr. 5). Perduodant prie Grįžtamųjų medžiagų akto supildomas ir pridedamas priedas 1 \" ST 25-63 kVA\"","komplektas",null,null,"",null,null,null,null,null,null,0]
[27,"Metalo konstrukcijos komplektas","ST 25/63 kVA (be10 kV saugiklių)","Ne senesnis nei 2005 m. įrengimo. Tinkamos naudoti, be didelės korozijos.\nPerduodamas pagal pridėtą atmintinę (priedas Nr. 5). Perduodant prie Grįžtamųjų medžiagų akto supildomas ir pridedamas priedas 1 \" ST 25-63 kVA\"","komplektas",null,null,"",null,null,null,null,null,null,0]
[28,"Izoliatoriai","IOS-35/500","Neturėtų išorinių dužimų ir skylimų požymių.","vnt.",null,null,"",null,null,null,null,null,null,0]
[29,"Izoliatoriai","ST-35","Neturėtų išorinių dužimų ir skylimų požymių.","vnt.",null,null,"",null,null,null,null,null,null,0]
[30,"Izoliatoriai*","IPU-10","Neturėtų išorinių dužimų ir skylimų požymių.","vnt.",null,null,"",null,null,null,null,null,null,0]
[31,"Oro kabelis","AMKA 1x16+25","Minimalus nedalomas ilgis 100 m, be gnybtų ir kitų pašalinių daiktų, su nepažeista izoliacija","m",null,null,"",null,null,null,null,null,null,0]
[32,"Oro kabelis","AMKA 3x16+25","Minimalus nedalomas ilgis 100 m, be gnybtų ir kitų pašalinių daiktų, su nepažeista izoliacija","m",null,null,"",null,null,null,null,null,null,0]
[33,"Oro kabelis","AMKA 3x25+35","Minimalus nedalomas ilgis 100 m, be gnybtų ir kitų pašalinių daiktų, su nepažeista izoliacija","m",null,null,"",null,null,null,null,null,null,0]
[34,"Oro kabelis","AMKA 3x35+50","Minimalus nedalomas ilgis 100 m, be gnybtų ir kitų pašalinių daiktų, su nepažeista izoliacija","m",null,null,"",null,null,null,null,null,null,0]
[35,"Oro kabelis","AMKA 3x50+70","Minimalus nedalomas ilgis 100 m, be gnybtų ir kitų pašalinių daiktų, su nepažeista izoliacija","m",null,null,"",null,null,null,null,null,null,0]
[36,"Oro kabelis","AMKA 3x70+95","Minimalus nedalomas ilgis 100 m, be gnybtų ir kitų pašalinių daiktų, su nepažeista izoliacija","m",null,null,"",null,null,null,null,null,null,0]
[37,"Oro kabelis","AMKA 3x120+95","Minimalus nedalomas ilgis 100 m, be gnybtų ir kitų pašalinių daiktų, su nepažeista izoliacija","m",null,null,"",null,null,null,null,null,null,0]
[38,"Izoliuotas laidas","SAX 35","Minimalus nedalomas ilgis 100 m, be gnybtų ir kitų pašalinių daiktų, su nepažeista izoliacija","m",null,null,"",null,null,null,null,null,null,0]
[39,"Izoliuotas laidas","SAX 50","Minimalus nedalomas ilgis 100 m, be gnybtų ir kitų pašalinių daiktų, su nepažeista izoliacija","m",null,null,"",null,null,null,null,null,null,0]
[40,"Izoliuotas laidas","SAX 70","Minimalus nedalomas ilgis 100 m, be gnybtų ir kitų pašalinių daiktų, su nepažeista izoliacija","m",null,null,"",null,null,null,null,null,null,0]
[41,"Izoliuotas laidas*","SAX 95","Minimalus nedalomas ilgis 100 m, be gnybtų ir kitų pašalinių daiktų, su nepažeista izoliacija","m",null,null,"",null,null,null,null,null,null,0]
[42,"Izoliuotas laidas*","SAX 120","Minimalus nedalomas ilgis 100 m, be gnybtų ir kitų pašalinių daiktų, su nepažeista izoliacija","m",null,null,"",null,null,null,null,null,null,0]
[43,"10kV skyrikliai lauko tipo","3LSG vertikalus ir horizontalus. Su tvirtinimo aikštele","Be defektų peiliuose ir be irimo židinių. Perduodami pagal pridėtą atmintinę (priedas Nr. 7). Perduodant prie Grįžtamųjų medžiagų akto supildomas ir pridedamas priedas Nr. 3 \"10 kV skyriklis\"","vnt.",null,null,"",null,null,null,null,null,null,0]
[44,"Viršįtampių ribotuvai","35 kV","Priimami tik su izoliacijos patikrinimu (laisvos formos patikrinimo megometru aktas)","vnt.",null,null,"",null,null,null,null,null,null,0]
[45,"Viršįtampių ribotuvai","10 kV","Priimami tik su izoliacijos patikrinimu (laisvos formos patikrinimo megometru aktas)","vnt.",null,null,"",null,null,null,null,null,null,0]
[46,"Pavaros","PP-67",null,"vnt.",null,null,"",null,null,null,null,null,null,0]
[47,"Pavaros","PP-67U2",null,"vnt.",null,null,"",null,null,null,null,null,null,0]
[48,"10 kV narveliai",null,null,"vnt.",null,null,"",null,null,null,null,null,null,0]
[49,"Narveliai su alyviniais jungtuvais","VMG-133 ir VMG-10K"," ","vnt.",null,null,"",null,null,null,null,null,null,0]
[50,"10 kV oro izoliacijos narveliai","su vakuuminiais jungtuvais ir mikroprocesorine rėle","Su jungtuvu ir rėle","vnt.",null,null,"",null,null,null,null,null,null,0]
[51,"10 kV oro izoliacijos narveliai","su vakuuminiais jungtuvais ir tiesioginio veikimo rele","Su jungtuvu ir rėle","vnt.",null,null,"",null,null,null,null,null,null,0]
[52,"10 kV SF6 izoliacijos narveliai","Su skyrikliu","Su skyrikliu","vnt.",null,null,"",null,null,null,null,null,null,0]
[53,"Įvadiniai apskaitos skydai","vienfaziam įvadui 1-1 ir 1-2","Ne senesni nei 4 m. \nPerduodant prie Grįžtamųjų medžiagų akto supildomas ir pridedamas priedas Nr. 4. \"0,4 kV_KAS_KS\"","vnt.",null,null,"",null,null,null,null,null,null,0]
[54,"Įvadiniai apskaitos skydai","vienfaziam įvadui 1-4 ir 1-6","Ne senesni nei 4 m. \nPerduodant prie Grįžtamųjų medžiagų akto supildomas ir pridedamas priedas Nr. 4. \"0,4 kV_KAS_KS\"","vnt.",null,null,"",null,null,null,null,null,null,0]
[55,"Įvadiniai apskaitos skydai","trifaziam įvadui 3-1","Ne senesni nei 4 m. \nPerduodant prie Grįžtamųjų medžiagų akto supildomas ir pridedamas priedas Nr. 4. \"0,4 kV_KAS_KS\"","vnt.",null,null,"",null,null,null,null,null,null,0]
[56,"Įvadiniai apskaitos skydai","trifaziam įvadui 3-2","Ne senesni nei 4 m. \nPerduodant prie Grįžtamųjų medžiagų akto supildomas ir pridedamas priedas Nr. 4. \"0,4 kV_KAS_KS\"","vnt.",null,null,"",null,null,null,null,null,null,0]
[57,"Įvadiniai apskaitos skydai","trifaziam įvadui 3-4","Ne senesni nei 4 m. \nPerduodant prie Grįžtamųjų medžiagų akto supildomas ir pridedamas priedas Nr. 4. \"0,4 kV_KAS_KS\"","vnt.",null,null,"",null,null,null,null,null,null,0]
[58,"Įvadiniai apskaitos skydai","trifaziam įvadui 3-6","Ne senesni nei 4 m. \nPerduodant prie Grįžtamųjų medžiagų akto supildomas ir pridedamas priedas Nr. 4. \"0,4 kV_KAS_KS\"","vnt.",null,null,"",null,null,null,null,null,null,0]
[59,"Kabelių dėžės","be apskaitų modulių","Ne senesni nei 4 m. \nPerduodant prie Grįžtamųjų medžiagų akto supildomas ir pridedamas priedas Nr. 4. \"0,4 kV_KAS_KS\"","vnt.",null,null,"",null,null,null,null,null,null,0]
[60,"Kabelių dėžės","su 1 apskaitos moduliu","Ne senesni nei 4 m. \nPerduodant prie Grįžtamųjų medžiagų akto supildomas ir pridedamas priedas Nr. 4. \"0,4 kV_KAS_KS\"","vnt.",null,null,"",null,null,null,null,null,null,0]
[61,"Kabelių dėžės","su 2 apskaitos moduliu","Ne senesni nei 4 m. \nPerduodant prie Grįžtamųjų medžiagų akto supildomas ir pridedamas priedas Nr. 4. \"0,4 kV_KAS_KS\"","vnt.",null,null,"",null,null,null,null,null,null,0]
[62,"Kabelių dėžės","su 4 ir daugiau apskaitos moduliais","Ne senesni nei 4 m. \nPerduodant prie Grįžtamųjų medžiagų akto supildomas ir pridedamas priedas Nr. 4. \"0,4 kV_KAS_KS\"","vnt.",null,null,"",null,null,null,null,null,null,0]
[63,"35 kV AJ įvadai","VT-35",null,"vnt.",null,null,"",null,null,null,null,null,null,0]
[64,"35 kV AJ įvadai","VM-35",null,"vnt.",null,null,"",null,null,null,null,null,null,0]
[65,"35 kV AJ įvadai","S-35",null,"vnt.",null,null,"",null,null,null,null,null,null,0]
[66,"110kV įvadas","GTBT-110/800-U1",null,"vnt.",null,null,"",null,null,null,null,null,null,0]
[67,"110kV įvadas","COT",null,"vnt.",null,null,"",null,null,null,null,null,null,0]
[68,"10 kV alyvinio jungtuvo fazė","VMG-10",null,"vnt.",null,null,"",null,null,null,null,null,null,0]
[69,"10 kV alyvinio jungtuvo fazė","VMG-133",null,"vnt.",null,null,"",null,null,null,null,null,null,0]
[70,"10 kV alyvinio jungtuvo fazė","VMP-10",null,"vnt.",null,null,"",null,null,null,null,null,null,0]
[71,"10kV alyvinio jungtuvo fazė","VMPP-10",null,"vnt.",null,null,"",null,null,null,null,null,null,0]
[72,"10kV alyvinio jungtuvo fazė","VMM-10",null,"vnt.",null,null,"",null,null,null,null,null,null,0]
[73,"35 kV alyviniai jungtuvai","VT-35",null,"vnt.",null,null,"",null,null,null,null,null,null,0]
[74,"35 kV alyviniai jungtuvai","VM-35",null,"vnt.",null,null,{"$f":"IF($C$18=\"2525002 Įrenginių likvidavimas\",IF(F99=\"\",\"\",IF(F99=0,IF(F99<>\"\",\"\"),IF(F99<>\"\",IF(G99<>\"\",\"\",\"Suveskite Inventorinį\"),\"\"))),\"\")","v":""},null,null,null,null,null,null,{"$f":"IF(H99=\"Suveskite Inventorinį\",1,0)","v":0}]
[75,"35 kV alyviniai jungtuvai","S-35M",null,"vnt.",null,null,"",null,null,null,null,null,null,0]
[76,"35 kV alyviniai jungtuvai","VDB-35-60",null,"vnt.",null,null,"",null,null,null,null,null,null,0]
[77,"Jungtuvas vakuuminis","10 kV ir 35 kV",null,"vnt.",null,null,"",null,null,null,null,null,null,0]
[78,"Vakuuminio jungtuvo valdiklis","BB/TEL",null,"vnt.",null,null,"",null,null,null,null,null,null,0]
[79,"Kirtiklių-saugiklių blokas","lauko (SZ blokai) tipo","perduodami sukomplektuoti (saugiklių kirtiklių blokas, dangtelis, gnybtai)","vnt.",null,null,"",null,null,null,null,null,null,0]
[80,"Įtampos transformatoriai","ZNOM-35","ne senesni nei 30 m., su gamyklinėmis lentelėmis","vnt.",null,null,"",null,null,null,null,null,null,0]
[81,"Įtampos transformatoriai","NOM-35","ne senesni nei 30 m., su gamyklinėmis lentelėmis","vnt.",null,null,"",null,null,null,null,null,null,0]
[82,"Įtampos transformatoriai","NTMI-10","ne senesni nei 30 m., su gamyklinėmis lentelėmis","vnt.",null,null,"",null,null,null,null,null,null,0]
[83,"Įtampos transformatoriai","NAMI-10","ne senesni nei 30 m., su gamyklinėmis lentelėmis","vnt.",null,null,"",null,null,null,null,null,null,0]
[84,"Įtampos transformatoriai","TJC6","ne senesni nei 30 m., su gamyklinėmis lentelėmis","vnt.",null,null,"",null,null,null,null,null,null,0]
[85,"Įtampos transformatoriai","TJC4","ne senesni nei 30 m., su gamyklinėmis lentelėmis","vnt.",null,null,"",null,null,null,null,null,null,0]
[86,"Įtampos transformatoriai","UMZ 12-1","ne senesni nei 30 m., su gamyklinėmis lentelėmis","vnt.",null,null,"",null,null,null,null,null,null,0]
[87,"Įtampos transformatoriai","GSEF 30","ne senesni nei 30 m., su gamyklinėmis lentelėmis","vnt.",null,null,"",null,null,null,null,null,null,0]
[88,"Įtampos transformatoriai","GSEF 45","ne senesni nei 30 m., su gamyklinėmis lentelėmis","vnt.",null,null,"",null,null,null,null,null,null,0]
[89,"Įtampos transformatoriai","TJO7","ne senesni nei 30 m., su gamyklinėmis lentelėmis","vnt.",null,null,"",null,null,null,null,null,null,0]
[90,"Srovės transformatoriai","TOL-10","ne senesni nei 30 m., su gamyklinėmis lentelėmis","vnt.",null,null,"",null,null,null,null,null,null,0]
[91,"Srovės transformatoriai","TVK-10","ne senesni nei 30 m., su gamyklinėmis lentelėmis","vnt.",null,null,"",null,null,null,null,null,null,0]
[92,"Srovės transformatoriai","TVLM-10","ne senesni nei 30 m., su gamyklinėmis lentelėmis","vnt.",null,null,"",null,null,null,null,null,null,0]
[93,"Srovės transformatoriai","TPL-10","ne senesni nei 30 m., su gamyklinėmis lentelėmis","vnt.",null,null,"",null,null,null,null,null,null,0]
[94,"Srovės transformatoriai","TPLM-10","ne senesni nei 30 m., su gamyklinėmis lentelėmis","vnt.",null,null,"",null,null,null,null,null,null,0]
[95,"Srovės transformatoriai","TPOL-10","ne senesni nei 30 m., su gamyklinėmis lentelėmis","vnt.",null,null,"",null,null,null,null,null,null,0]
[96,"Srovės transformatoriai","TLM-10","ne senesni nei 30 m., su gamyklinėmis lentelėmis","vnt.",null,null,"",null,null,null,null,null,null,0]
[97,"Srovės transformatoriai","TŠL-10","ne senesni nei 30 m., su gamyklinėmis lentelėmis","vnt.",null,null,"",null,null,null,null,null,null,0]
[98,"Srovės transformatoriai","TV-35/10","ne senesni nei 30 m., su gamyklinėmis lentelėmis","vnt.",null,null,"",null,null,null,null,null,null,0]
[99,"Srovės transformatoriai","TPU","ne senesni nei 30 m., su gamyklinėmis lentelėmis","vnt.",null,null,"",null,null,null,null,null,null,0]
[100,"Srovės transformatoriai","IMZ 10","ne senesni nei 30 m., su gamyklinėmis lentelėmis","vnt.",null,null,"",null,null,null,null,null,null,0]
[101,"Srovės transformatoriai","IMZ 12","ne senesni nei 30 m., su gamyklinėmis lentelėmis","vnt.",null,null,"",null,null,null,null,null,null,0]
[102,"Srovės transformatoriai","ASS 12-6","ne senesni nei 30 m., su gamyklinėmis lentelėmis","vnt.",null,null,"",null,null,null,null,null,null,0]
[103,"Srovės transformatoriai","AD12/N2","ne senesni nei 30 m., su gamyklinėmis lentelėmis","vnt.",null,null,"",null,null,null,null,null,null,0]
[104,"Srovės transformatoriai","AB 12","ne senesni nei 30 m., su gamyklinėmis lentelėmis","vnt.",null,null,"",null,null,null,null,null,null,0]
[105,"Srovės transformatoriai","GIS 12-D","ne senesni nei 30 m., su gamyklinėmis lentelėmis","vnt.",null,null,"",null,null,null,null,null,null,0]
[106,"Lanko apsaugos relės","NOLA –01-M",null,"vnt.",null,null,"",null,null,null,null,null,null,0]
[107,"Lanko apsaugos relės","NOLA –02-S",null,"vnt.",null,null,"",null,null,null,null,null,null,0]
[108,"Lanko apsaugos relės","REA",null,"vnt.",null,null,"",null,null,null,null,null,null,0]
[109,"Įžemėjimo signalizacijos relė","ARCZEM-3F",null,"vnt.",null,null,"",null,null,null,null,null,null,0]
[110,"Dujine relė","BF 80/Q",null,"vnt.",null,null,"",null,null,null,null,null,null,0]
[111,"Dujine relė","BR 80",null,"vnt.",null,null,"",null,null,null,null,null,null,0]
[112,"Srautinė relė","RC 25",null,"vnt.",null,null,"",null,null,null,null,null,null,0]
[113,"Mikroelektroninė relė","SIPROTEC 7SJ45",null,"vnt.",null,null,"",null,null,null,null,null,null,0]
[114,"MRA terminalas","REF 541",null,"vnt.",null,null,"",null,null,null,null,null,null,0]
[115,"MRA terminalas","REF 543",null,"vnt.",null,null,"",null,null,null,null,null,null,0]
[116,"MRA terminalas","REF 545",null,"vnt.",null,null,"",null,null,null,null,null,null,0]
[117,"Maitinimo blokas","BPT-1002",null,"vnt.",null,null,"",null,null,null,null,null,null,0]
[118,"Izoliacinė alyva naudota I lygio",null,null,"kg.",null,null,"",null,null,null,null,null,null,0]
[119,"Izoliacinė alyva naudota II lygio",null,null,"kg.",null,null,"",null,null,null,null,null,null,0]
[120,"35kV skyrikliai (lauko tipo), su tvirtinimo aikštele",null,"Be izoliatorių","vnt.",null,null,"",null,null,null,null,null,null,0]
[121,"10kV reklouzerio valdymo spinta",null,null,"vnt.",null,null,"",null,null,null,null,null,null,0]
[122,"10kV reklouzeris (lauko tipo jungtuvas)",null,null,"vnt.",null,null,"",null,null,null,null,null,null,0]
[123,"35kV reklouzerio valdymo spinta",null,null,"vnt.",null,null,"",null,null,null,null,null,null,0]
[124,"35kV reklouzeris (lauko tipo jungtuvas)",null,null,"vnt.",null,null,"",null,null,null,null,null,null,0]
[125,"10-0,4 kV modulinė transformatorinė su dviem galios transformatoriais",null,"Su įrenginiais ir su pamatu (be galios transformatoriaus)","vnt.",null,null,"",null,null,null,null,null,null,0]
[126,"10-0,4 kV modulinė transformatorinė su vienu galios transformatorium",null,"Su įrenginiais ir su pamatu (be galios transformatoriaus)","vnt.",null,null,"",null,null,null,null,null,null,0]
[127,"10 kV Trumpo jungimo indikatoriai",null,null,"vnt.",null,null,"",null,null,null,null,null,null,0]
[128,"10 kV Atkabikliai (vienfazei jungtuvai)",null,null,"vnt.",null,null,"",null,null,null,null,null,null,0]
[129,"TSPĮ spinta (pilnos komplektacijos)",null,"Spinta ir visa joje esanti įranga","vnt.",null,null,"",null,null,null,null,null,null,0]
[130,"0,4 kV fazių balansavimo įrenginys",null,"Su (prie atramos) tvirtinimo elementais","vnt.",null,null,"",null,null,null,null,null,null,0]
[131,"0,4 kV įtampos reguliatorius",null,"Su (prie atramos) tvirtinimo elementais","vnt.",null,null,"",null,null,null,null,null,null,0]
[null,null,null,null,null,{"$f":"SUM(F26:F156)","v":0}]
[]
[]
[]
["*žvaigždute pažymėtos grįžtamųjų medžiagų pozicijos į ESO sandėlį pristatomos tik gavus atskirą ESO atstovo nurodymą. Kitais atvejais \"GM\" parduodamos rangovui rangos darbų sutartyse nustatyta tvarka arba rangovo lėšomis utilizuojamos rangos darbų sutartyse nustatyta tvarka, priklausomai kuriai grįžtamųjų medžiagų rūšiai (parduodamos ar utilizuojamos) yra priskirtos."]
[]
[]
[null,"Atsakingas asmuo\n(Techninis prižiūrėtojas)",null,null,{"$f":"IFERROR(VLOOKUP(D164,Darbinis!B25:C74,2,0),\"\")","v":""},null,null,null,null,null,null,null,null,null,{"$f":"IF(D164=\"\",1,0)","v":1}]
[null,null,null,"Vardas, pavardė",null,"parašas"]
[]
[null,"Darbų vykdytojas\n(Rangovas)",null,null,null,null,null,null,null,null,null,null,null,null,{"$f":"IF(D167=\"\",1,0)","v":1}]
[null,null," ",null,null,"parašas"]
[null,null,null,""]

{"sheet":"Suvestine","index":1,"n_rows":143,"n_cols":11,"rows_kept":143,"cut":false,"hidden":false,"merged":[]}
[null,"GRĮŽTAMŲJŲ MEDŽIAGŲ AKTO SUVESTINĖ"]
[]
[{"$f":"'GM aktas'!A8","v":"1."},{"$f":"'GM aktas'!B8","v":"Rangovas"},{"$f":"'GM aktas'!C8","v":"pasirinkti"}]
[{"$f":"'GM aktas'!A10","v":"2."},{"$f":"'GM aktas'!B10","v":"Rangos darbų sutarties Nr."},{"$f":"'GM aktas'!C10","v":"Įveskite Sutarties Nr."}]
[{"$f":"'GM aktas'!A12","v":"3."},{"$f":"'GM aktas'!B12","v":"Rangos darbų užsakymo Nr. (iš TIVIS)"},{"$f":"'GM aktas'!C12","v":"Užpildyti"}]
[{"$f":"'GM aktas'!A14","v":"4."},{"$f":"'GM aktas'!B14","v":"Objekto pavadinimas pagal TIVIS:"},{"$f":"'GM aktas'!C14","v":"Užpildyti"}]
[{"$f":"'GM aktas'!A16","v":"5."},{"$f":"'GM aktas'!B16","v":"Investicinis Nr./Darbų Nr.  (iš TIVIS)"},{"$f":"'GM aktas'!C16","v":"Užpildyti"}]
[{"$f":"'GM aktas'!A17","v":"6."},{"$f":"'GM aktas'!B17","v":"Objekto Nr. (iš TIVIS)"},{"$f":"'GM aktas'!C17","v":"Užpildyti"}]
[{"$f":"'GM aktas'!A18","v":"7."},{"$f":"'GM aktas'!B18","v":"Grįžtamųjų medžiagų atsiradimo priežastis: "},{"$f":"'GM aktas'!C18","v":"pasirinkti"}]
[{"$f":"'GM aktas'!A20","v":"8."},{"$f":"'GM aktas'!B20","v":"GM akto pateikimo data:"},{"$f":"'GM aktas'!C20","v":"202x-xx-xx"}]
["Prekės pavadinimas","Markė, modelis","Mato vnt.","Dynamics kodas","Pastaba, kodėl kodo nėra automatu","Mato vnt.","Kiekis","Pajamavimo kaina","Suma",null,"Skaičius"]
["G/b stiebai ir metalinės atramos*","S110-34,3","vnt.",22101000630011,"geros techninės būklės",{"$f":"C12","v":"vnt."},{"$f":"'GM aktas'!F26","v":0},1,{"$f":"G12*H12","v":0},null,{"$f":"IF(G12>0,1,0)","v":0}]
["G/b stiebai ir metalinės atramos*","S110-3,5","vnt.",22101000630022,"geros techninės būklės",{"$f":"C13","v":"vnt."},{"$f":"'GM aktas'!F27","v":0},1,{"$f":"G13*H13","v":0},null,{"$f":"IF(G13>0,1,0)","v":0}]
["G/b stiebai ir metalinės atramos*","S130-68,6","vnt.",22101000630012,"geros techninės būklės","vnt.",{"$f":"'GM aktas'!F28","v":0},1,0,null,0]
["G/b stiebai ir metalinės atramos*","S130-40","vnt.",22101000630023,"geros techninės būklės","vnt.",{"$f":"'GM aktas'!F29","v":0},1,0,null,0]
["G/b stiebai ir metalinės atramos*","S96-21,6","vnt.",22101000630021,"geros techninės būklės","vnt.",{"$f":"'GM aktas'!F30","v":0},1,0,null,0]
["G/b stiebai ir metalinės atramos*","S96-30,3","vnt.",22101000630008,"geros techninės būklės","vnt.",{"$f":"'GM aktas'!F31","v":0},1,0,null,0]
["G/b stiebai ir metalinės atramos*","S90-19,6","vnt.",22101000630018,"geros techninės būklės","vnt.",{"$f":"'GM aktas'!F32","v":0},1,0,null,0]
["G/b stiebai ir metalinės atramos*","S90-10,8","vnt.",22101000630019,"geros techninės būklės","vnt.",{"$f":"'GM aktas'!F33","v":0},1,0,null,0]
["G/b stiebai ir metalinės atramos*","S90-19,8","vnt.",22101000630020,"geros techninės būklės","vnt.",{"$f":"'GM aktas'!F34","v":0},1,0,null,0]
["G/b stiebai ir metalinės atramos*","S90-30,3","vnt.",22101000630009,"geros techninės būklės","vnt.",{"$f":"'GM aktas'!F35","v":0},1,0,null,0]
["G/b stiebai ir metalinės atramos*","S90-21,6","vnt.",22101000630007,"geros techninės būklės","vnt.",{"$f":"'GM aktas'!F36","v":0},1,0,null,0]
["35 kV metalinės cinkuotos kampinės–inkarinės atramos","UAP35-6 ir/arba analogas","vnt.",22101000630013,"cinkuotos, be cinko sluoksnio irimo židinių, be defektų","vnt.",{"$f":"'GM aktas'!F37","v":0},489.5,0,null,0]
["35 kV metalinės cinkuotos kampinės–inkarinės atramos","U110-4 ir/arba analogas","vnt.",22101000630001,"cinkuotos, be cinko sluoksnio irimo židinių, be defektų","vnt.",{"$f":"'GM aktas'!F38","v":0},564.29999999999995,0,null,0]
["Viršūnės*","T","vnt.",22101000520118,"cinkuotos, be cinko sluoksnio irimo židinių","vnt.",{"$f":"'GM aktas'!F39","v":0},0.81400000000000006,0,null,0]
["Viršūnės*","TK-9","vnt.",22101000520120,"cinkuotos, be cinko sluoksnio irimo židinių","vnt.",{"$f":"'GM aktas'!F40","v":0},1.1880000000000002,0,null,0]
["Viršūnės*","TK-9A","vnt.",22101000520121,"cinkuotos, be cinko sluoksnio irimo židinių","vnt.",{"$f":"'GM aktas'!F41","v":0},2.024,0,null,0]
["Traversos*","T","vnt.",22101000520102,"cinkuotos, be cinko sluoksnio irimo židinių","vnt.",{"$f":"'GM aktas'!F42","v":0},1.54,0,null,0]
["Traversos*","TK-9","vnt.",22101000520127,"cinkuotos, be cinko sluoksnio irimo židinių","vnt.",{"$f":"'GM aktas'!F43","v":0},3.476,0,null,0]
["Traversos*","TK-9A","vnt.",22101000520128,"cinkuotos, be cinko sluoksnio irimo židinių","vnt.",{"$f":"'GM aktas'!F44","v":0},4.0920000000000005,0,null,0]
["Traversos*","T-2","vnt.",22101000520129,"cinkuotos, be cinko sluoksnio irimo židinių","vnt.",{"$f":"'GM aktas'!F45","v":0},0.39600000000000002,0,null,0]
["Traversos*","K-2 (I-2)","vnt.",22101000520130,"cinkuotos, be cinko sluoksnio irimo židinių","vnt.",{"$f":"'GM aktas'!F46","v":0},0.83599999999999997,0,null,0]
["Traversos*","Ti-1","vnt.",22101000520131,"cinkuotos, be cinko sluoksnio irimo židinių","vnt.",{"$f":"'GM aktas'!F47","v":0},1.232,0,null,0]
["Ramsčio konstrukcijos*","PTM-2,7","vnt.",22101000520125,"cinkuotos, be cinko sluoksnio irimo židinių","vnt.",{"$f":"'GM aktas'!F48","v":0},1.8480000000000001,0,null,0]
["Ramsčio konstrukcijos*","PTM-1,1","vnt.",22101000520126,"cinkuotos, be cinko sluoksnio irimo židinių","vnt.",{"$f":"'GM aktas'!F49","v":0},0.96800000000000008,0,null,0]
["Metalo konstrukcijos komplektas","ST 100-400 kVA","komplektas",22101000520122,"Ne senesnis nei 2005 m. įrengimo. Tinkamos naudoti, be didelės korozijos.\nPerduodamas pagal pridėtą atmintinę (priedas Nr.6). Perduodant prie Grįžtamųjų medžiagų akto supildomas ir pridedamas priedas Nr. 2 \" ST 100-400 kVA\"","komplektas",{"$f":"'GM aktas'!F50","v":0},26.4,0,null,0]
["Metalo konstrukcijos komplektas","ST 25-63 kVA (su 10 kV saugikliais)","komplektas",22101000520123,"Ne senesnis nei 2005 m. įrengimo. Tinkamos naudoti, be didelės korozijos.\nPerduodamas pagal pridėtą atmintinę (priedas Nr. 5). Perduodant prie Grįžtamųjų medžiagų akto supildomas ir pridedamas priedas 1 \" ST 25-63 kVA\"","komplektas",{"$f":"'GM aktas'!F51","v":0},6.6,0,null,0]
["Metalo konstrukcijos komplektas","ST 25/63 kVA (be10 kV saugiklių)","komplektas",22101000520124,"Ne senesnis nei 2005 m. įrengimo. Tinkamos naudoti, be didelės korozijos.\nPerduodamas pagal pridėtą atmintinę (priedas Nr. 5). Perduodant prie Grįžtamųjų medžiagų akto supildomas ir pridedamas priedas 1 \" ST 25-63 kVA\"","komplektas",{"$f":"'GM aktas'!F52","v":0},5.5,0,null,0]
["Izoliatoriai","IOS-35/500","vnt.",22101000620019,"Neturėtų išorinių dužimų ir skylimų požymių.","vnt.",{"$f":"'GM aktas'!F53","v":0},1,0,null,0]
["Izoliatoriai","ST-35","vnt.",22101000620020,"Neturėtų išorinių dužimų ir skylimų požymių.","vnt.",{"$f":"'GM aktas'!F54","v":0},1,0,null,0]
["Izoliatoriai*","IPU-10","vnt.",22101000620021,"Neturėtų išorinių dužimų ir skylimų požymių.","vnt.",{"$f":"'GM aktas'!F55","v":0},1,0,null,0]
["Oro kabelis","AMKA 1x16+25","m",22101000560078,"Minimalus nedalomas ilgis 100 m, be gnybtų ir kitų pašalinių daiktų, su nepažeista izoliacija","m",{"$f":"'GM aktas'!F56","v":0},4.5900000000000003E-2,0,null,0]
["Oro kabelis","AMKA 3x16+25","m",22101000560084,"Minimalus nedalomas ilgis 100 m, be gnybtų ir kitų pašalinių daiktų, su nepažeista izoliacija","m",{"$f":"'GM aktas'!F57","v":0},9.1800000000000007E-2,0,null,0]
["Oro kabelis","AMKA 3x25+35","m",22101000560079,"Minimalus nedalomas ilgis 100 m, be gnybtų ir kitų pašalinių daiktų, su nepažeista izoliacija","m",{"$f":"'GM aktas'!F58","v":0},0.13260000000000002,0,null,0]
["Oro kabelis","AMKA 3x35+50","m",22101000560080,"Minimalus nedalomas ilgis 100 m, be gnybtų ir kitų pašalinių daiktų, su nepažeista izoliacija","m",{"$f":"'GM aktas'!F59","v":0},0.18020000000000003,0,null,0]
["Oro kabelis","AMKA 3x50+70","m",22101000560081,"Minimalus nedalomas ilgis 100 m, be gnybtų ir kitų pašalinių daiktų, su nepažeista izoliacija","m",{"$f":"'GM aktas'!F60","v":0},0.23799999999999999,0,null,0]
["Oro kabelis","AMKA 3x70+95","m",22101000560082,"Minimalus nedalomas ilgis 100 m, be gnybtų ir kitų pašalinių daiktų, su nepažeista izoliacija","m",{"$f":"'GM aktas'!F61","v":0},0.56372999999999995,0,null,0]
["Oro kabelis","AMKA 3x120+95","m",22101000560083,"Minimalus nedalomas ilgis 100 m, be gnybtų ir kitų pašalinių daiktų, su nepažeista izoliacija","m",{"$f":"'GM aktas'!F62","v":0},0.51,0,null,0]
["Izoliuotas laidas","SAX 35","m",22101000560069,"Minimalus nedalomas ilgis 100 m, be gnybtų ir kitų pašalinių daiktų, su nepažeista izoliacija","m",{"$f":"'GM aktas'!F63","v":0},9.1199999999999989E-2,0,null,0]
["Izoliuotas laidas","SAX 50","m",22101000550013,"Minimalus nedalomas ilgis 100 m, be gnybtų ir kitų pašalinių daiktų, su nepažeista izoliacija","m",{"$f":"'GM aktas'!F64","v":0},0.11399999999999999,0,null,0]
["Izoliuotas laidas","SAX 70","m",22101000550014,"Minimalus nedalomas ilgis 100 m, be gnybtų ir kitų pašalinių daiktų, su nepažeista izoliacija","m",{"$f":"'GM aktas'!F65","v":0},0.15390000000000001,0,null,0]
["Izoliuotas laidas*","SAX 95","m",22101000550042,"Minimalus nedalomas ilgis 100 m, be gnybtų ir kitų pašalinių daiktų, su nepažeista izoliacija","m",{"$f":"'GM aktas'!F66","v":0},0.19949999999999998,0,null,0]
["Izoliuotas laidas*","SAX 120","m",22101000550043,"Minimalus nedalomas ilgis 100 m, be gnybtų ir kitų pašalinių daiktų, su nepažeista izoliacija","m",{"$f":"'GM aktas'!F67","v":0},0.24224999999999997,0,null,0]
["10kV skyrikliai lauko tipo","3LSG vertikalus ir horizontalus. Su tvirtinimo aikštele","vnt.",null,"Be defektų peiliuose ir be irimo židinių. Perduodami pagal pridėtą atmintinę (priedas Nr. 7). Perduodant prie Grįžtamųjų medžiagų akto supildomas ir pridedamas priedas Nr. 3 \"10 kV skyriklis\"","vnt.",{"$f":"'GM aktas'!F68","v":0},6.16,0,null,0]
["Viršįtampių ribotuvai","35 kV","vnt.",null,"Priimami tik su izoliacijos patikrinimu (laisvos formos patikrinimo megometru aktas)","vnt.",{"$f":"'GM aktas'!F69","v":0},1,0,null,0]
["Viršįtampių ribotuvai","10 kV","vnt.",null,"Priimami tik su izoliacijos patikrinimu (laisvos formos patikrinimo megometru aktas)","vnt.",{"$f":"'GM aktas'!F70","v":0},1,0,null,0]
["Pavaros","PP-67","vnt.",22101000760241,null,"vnt.",{"$f":"'GM aktas'!F71","v":0},9.7199999999999989,0,null,0]
["Pavaros","PP-67U2","vnt.",22101000760241,null,"vnt.",{"$f":"'GM aktas'!F72","v":0},9.7199999999999989,0,null,0]
["10 kV narveliai",null,"vnt.",null,null,"vnt.",{"$f":"'GM aktas'!F73","v":0},36.36,0,null,0]
["Narveliai su alyviniais jungtuvais","VMG-133 ir VMG-10K","vnt.",null," ","vnt.",{"$f":"'GM aktas'!F74","v":0},72.36,0,null,0]
["10 kV oro izoliacijos narveliai","su vakuuminiais jungtuvais ir mikroprocesorine rėle","vnt.",null,"Su jungtuvu ir rėle","vnt.",{"$f":"'GM aktas'!F75","v":0},108,0,null,0]
["10 kV oro izoliacijos narveliai","su vakuuminiais jungtuvais ir tiesioginio veikimo rele","vnt.",null,"Su jungtuvu ir rėle","vnt.",{"$f":"'GM aktas'!F76","v":0},108,0,null,0]
["10 kV SF6 izoliacijos narveliai","Su skyrikliu","vnt.",null,"Su skyrikliu","vnt.",{"$f":"'GM aktas'!F77","v":0},25.2,0,null,0]
["Įvadiniai apskaitos skydai","vienfaziam įvadui 1-1 ir 1-2","vnt.",null,"Ne senesni nei 4 m. \nPerduodant prie Grįžtamųjų medžiagų akto supildomas ir pridedamas priedas Nr. 4. \"0,4 kV_KAS_KS\"","vnt.",{"$f":"'GM aktas'!F78","v":0},1.7999999999999998,0,null,0]
["Įvadiniai apskaitos skydai","vienfaziam įvadui 1-4 ir 1-6","vnt.",null,"Ne senesni nei 4 m. \nPerduodant prie Grįžtamųjų medžiagų akto supildomas ir pridedamas priedas Nr. 4. \"0,4 kV_KAS_KS\"","vnt.",{"$f":"'GM aktas'!F79","v":0},4.1399999999999997,0,null,0]
["Įvadiniai apskaitos skydai","trifaziam įvadui 3-1","vnt.",22101000370053,"Ne senesni nei 4 m. \nPerduodant prie Grįžtamųjų medžiagų akto supildomas ir pridedamas priedas Nr. 4. \"0,4 kV_KAS_KS\"","vnt.",{"$f":"'GM aktas'!F80","v":0},1.7999999999999998,0,null,0]
["Įvadiniai apskaitos skydai","trifaziam įvadui 3-2","vnt.",22101000370054,"Ne senesni nei 4 m. \nPerduodant prie Grįžtamųjų medžiagų akto supildomas ir pridedamas priedas Nr. 4. \"0,4 kV_KAS_KS\"","vnt.",{"$f":"'GM aktas'!F81","v":0},2.6999999999999997,0,null,0]
["Įvadiniai apskaitos skydai","trifaziam įvadui 3-4","vnt.",22101000370058,"Ne senesni nei 4 m. \nPerduodant prie Grįžtamųjų medžiagų akto supildomas ir pridedamas priedas Nr. 4. \"0,4 kV_KAS_KS\"","vnt.",{"$f":"'GM aktas'!F82","v":0},6.84,0,null,0]
["Įvadiniai apskaitos skydai","trifaziam įvadui 3-6","vnt.",22101000370059,"Ne senesni nei 4 m. \nPerduodant prie Grįžtamųjų medžiagų akto supildomas ir pridedamas priedas Nr. 4. \"0,4 kV_KAS_KS\"","vnt.",{"$f":"'GM aktas'!F83","v":0},8.64,0,null,0]
["Kabelių dėžės","be apskaitų modulių","vnt.",22101000370074,"Ne senesni nei 4 m. \nPerduodant prie Grįžtamųjų medžiagų akto supildomas ir pridedamas priedas Nr. 4. \"0,4 kV_KAS_KS\"","vnt.",{"$f":"'GM aktas'!F84","v":0},7.56,0,null,0]
["Kabelių dėžės","su 1 apskaitos moduliu","vnt.",22101000370073,"Ne senesni nei 4 m. \nPerduodant prie Grįžtamųjų medžiagų akto supildomas ir pridedamas priedas Nr. 4. \"0,4 kV_KAS_KS\"","vnt.",{"$f":"'GM aktas'!F85","v":0},9,0,null,0]
["Kabelių dėžės","su 2 apskaitos moduliu","vnt.",22101000370077,"Ne senesni nei 4 m. \nPerduodant prie Grįžtamųjų medžiagų akto supildomas ir pridedamas priedas Nr. 4. \"0,4 kV_KAS_KS\"","vnt.",{"$f":"'GM aktas'!F86","v":0},10.62,0,null,0]
["Kabelių dėžės","su 4 ir daugiau apskaitos moduliais","vnt.",22101000370075,"Ne senesni nei 4 m. \nPerduodant prie Grįžtamųjų medžiagų akto supildomas ir pridedamas priedas Nr. 4. \"0,4 kV_KAS_KS\"","vnt.",{"$f":"'GM aktas'!F87","v":0},11.7,0,null,0]
["35 kV AJ įvadai","VT-35","vnt.",null,null,"vnt.",{"$f":"'GM aktas'!F88","v":0},3.2960000000000003,0,null,0]
["35 kV AJ įvadai","VM-35","vnt.",null,null,"vnt.",{"$f":"'GM aktas'!F89","v":0},3.9139999999999997,0,null,0]
["35 kV AJ įvadai","S-35","vnt.",null,null,"vnt.",{"$f":"'GM aktas'!F90","v":0},2.8839999999999999,0,null,0]
["110kV įvadas","GTBT-110/800-U1","vnt.",22101000900044,null,"vnt.",{"$f":"'GM aktas'!F91","v":0},10.094000000000001,0,null,0]
["110kV įvadas","COT","vnt.",22101000340003,null,"vnt.",{"$f":"'GM aktas'!F92","v":0},5.4589999999999996,0,null,0]
["10 kV alyvinio jungtuvo fazė","VMG-10","vnt.",22101000580002,null,"vnt.",{"$f":"'GM aktas'!F93","v":0},2.5750000000000002,0,null,0]
["10 kV alyvinio jungtuvo fazė","VMG-133","vnt.",22101000580041,null,"vnt.",{"$f":"'GM aktas'!F94","v":0},2.7810000000000001,0,null,0]
["10 kV alyvinio jungtuvo fazė","VMP-10","vnt.",22101000580042,null,"vnt.",{"$f":"'GM aktas'!F95","v":0},2.3689999999999998,0,null,0]
["10kV alyvinio jungtuvo fazė","VMPP-10","vnt.",22101000580043,null,"vnt.",{"$f":"'GM aktas'!F96","v":0},2.1630000000000003,0,null,0]
["10kV alyvinio jungtuvo fazė","VMM-10","vnt.",22101000580044,null,"vnt.",{"$f":"'GM aktas'!F97","v":0},1.8540000000000001,0,null,0]
["35 kV alyviniai jungtuvai","VT-35","vnt.",null,null,"vnt.",{"$f":"'GM aktas'!F98","v":0},5.3560000000000008,0,null,0]
["35 kV alyviniai jungtuvai","VM-35","vnt.",null,null,{"$f":"C85","v":"vnt."},{"$f":"'GM aktas'!F99","v":0},5.7679999999999998,{"$f":"G85*H85","v":0},null,{"$f":"IF(G85>0,1,0)","v":0}]
["35 kV alyviniai jungtuvai","S-35M","vnt.",null,null,"vnt.",{"$f":"'GM aktas'!F100","v":0},4.944,0,null,0]
["35 kV alyviniai jungtuvai","VDB-35-60","vnt.",null,null,"vnt.",{"$f":"'GM aktas'!F101","v":0},1.03,0,null,0]
["Jungtuvas vakuuminis","10 kV ir 35 kV","vnt.",null,null,"vnt.",{"$f":"'GM aktas'!F102","v":0},1,0,null,0]
["Vakuuminio jungtuvo valdiklis","BB/TEL","vnt.",null,null,"vnt.",{"$f":"'GM aktas'!F103","v":0},1,0,null,0]
["Kirtiklių-saugiklių blokas","lauko (SZ blokai) tipo","vnt.",22101000580039,"perduodami sukomplektuoti (saugiklių kirtiklių blokas, dangtelis, gnybtai)","vnt.",{"$f":"'GM aktas'!F104","v":0},1,0,null,0]
["Įtampos transformatoriai","ZNOM-35","vnt.",22101000340125,"ne senesni nei 30 m., su gamyklinėmis lentelėmis","vnt.",{"$f":"'GM aktas'!F105","v":0},1,0,null,0]
["Įtampos transformatoriai","NOM-35","vnt.",22101000340211,"ne senesni nei 30 m., su gamyklinėmis lentelėmis","vnt.",{"$f":"'GM aktas'!F106","v":0},1,0,null,0]
["Įtampos transformatoriai","NTMI-10","vnt.",22101000340125,"ne senesni nei 30 m., su gamyklinėmis lentelėmis","vnt.",{"$f":"'GM aktas'!F107","v":0},1,0,null,0]
["Įtampos transformatoriai","NAMI-10","vnt.",22101000340130,"ne senesni nei 30 m., su gamyklinėmis lentelėmis","vnt.",{"$f":"'GM aktas'!F108","v":0},1,0,null,0]
["Įtampos transformatoriai","TJC6","vnt.",22101000340119,"ne senesni nei 30 m., su gamyklinėmis lentelėmis","vnt.",{"$f":"'GM aktas'!F109","v":0},1,0,null,0]
["Įtampos transformatoriai","TJC4","vnt.",null,"ne senesni nei 30 m., su gamyklinėmis lentelėmis","vnt.",{"$f":"'GM aktas'!F110","v":0},1,0,null,0]
["Įtampos transformatoriai","UMZ 12-1","vnt.",22101000340132,"ne senesni nei 30 m., su gamyklinėmis lentelėmis","vnt.",{"$f":"'GM aktas'!F111","v":0},1,0,null,0]
["Įtampos transformatoriai","GSEF 30","vnt.",22101000340133,"ne senesni nei 30 m., su gamyklinėmis lentelėmis","vnt.",{"$f":"'GM aktas'!F112","v":0},1,0,null,0]
["Įtampos transformatoriai","GSEF 45","vnt.",22101000340123,"ne senesni nei 30 m., su gamyklinėmis lentelėmis","vnt.",{"$f":"'GM aktas'!F113","v":0},1,0,null,0]
["Įtampos transformatoriai","TJO7","vnt.",22101000340122,"ne senesni nei 30 m., su gamyklinėmis lentelėmis","vnt.",{"$f":"'GM aktas'!F114","v":0},1,0,null,0]
["Srovės transformatoriai","TOL-10","vnt.",null,"ne senesni nei 30 m., su gamyklinėmis lentelėmis","vnt.",{"$f":"'GM aktas'!F115","v":0},1,0,null,0]
["Srovės transformatoriai","TVK-10","vnt.",null,"ne senesni nei 30 m., su gamyklinėmis lentelėmis","vnt.",{"$f":"'GM aktas'!F116","v":0},1,0,null,0]
["Srovės transformatoriai","TVLM-10","vnt.",null,"ne senesni nei 30 m., su gamyklinėmis lentelėmis","vnt.",{"$f":"'GM aktas'!F117","v":0},1,0,null,0]
["Srovės transformatoriai","TPL-10","vnt.",null,"ne senesni nei 30 m., su gamyklinėmis lentelėmis","vnt.",{"$f":"'GM aktas'!F118","v":0},1,0,null,0]
["Srovės transformatoriai","TPLM-10","vnt.",null,"ne senesni nei 30 m., su gamyklinėmis lentelėmis","vnt.",{"$f":"'GM aktas'!F119","v":0},1,0,null,0]
["Srovės transformatoriai","TPOL-10","vnt.",null,"ne senesni nei 30 m., su gamyklinėmis lentelėmis","vnt.",{"$f":"'GM aktas'!F120","v":0},1,0,null,0]
["Srovės transformatoriai","TLM-10","vnt.",null,"ne senesni nei 30 m., su gamyklinėmis lentelėmis","vnt.",{"$f":"'GM aktas'!F121","v":0},1,0,null,0]
["Srovės transformatoriai","TŠL-10","vnt.",null,"ne senesni nei 30 m., su gamyklinėmis lentelėmis","vnt.",{"$f":"'GM aktas'!F122","v":0},1,0,null,0]
["Srovės transformatoriai","TV-35/10","vnt.",null,"ne senesni nei 30 m., su gamyklinėmis lentelėmis","vnt.",{"$f":"'GM aktas'!F123","v":0},1,0,null,0]
["Srovės transformatoriai","TPU","vnt.",null,"ne senesni nei 30 m., su gamyklinėmis lentelėmis","vnt.",{"$f":"'GM aktas'!F124","v":0},1,0,null,0]
["Srovės transformatoriai","IMZ 10","vnt.",null,"ne senesni nei 30 m., su gamyklinėmis lentelėmis","vnt.",{"$f":"'GM aktas'!F125","v":0},1,0,null,0]
["Srovės transformatoriai","IMZ 12","vnt.",null,"ne senesni nei 30 m., su gamyklinėmis lentelėmis","vnt.",{"$f":"'GM aktas'!F126","v":0},1,0,null,0]
["Srovės transformatoriai","ASS 12-6","vnt.",null,"ne senesni nei 30 m., su gamyklinėmis lentelėmis","vnt.",{"$f":"'GM aktas'!F127","v":0},1,0,null,0]
["Srovės transformatoriai","AD12/N2","vnt.",null,"ne senesni nei 30 m., su gamyklinėmis lentelėmis","vnt.",{"$f":"'GM aktas'!F128","v":0},1,0,null,0]
["Srovės transformatoriai","AB 12","vnt.",null,"ne senesni nei 30 m., su gamyklinėmis lentelėmis","vnt.",{"$f":"'GM aktas'!F129","v":0},1,0,null,0]
["Srovės transformatoriai","GIS 12-D","vnt.",null,"ne senesni nei 30 m., su gamyklinėmis lentelėmis","vnt.",{"$f":"'GM aktas'!F130","v":0},1,0,null,0]
["Lanko apsaugos relės","NOLA –01-M","vnt.",null,null,"vnt.",{"$f":"'GM aktas'!F131","v":0},1,0,null,0]
["Lanko apsaugos relės","NOLA –02-S","vnt.",null,null,"vnt.",{"$f":"'GM aktas'!F132","v":0},1,0,null,0]
["Lanko apsaugos relės","REA","vnt.",null,null,"vnt.",{"$f":"'GM aktas'!F133","v":0},1,0,null,0]
["Įžemėjimo signalizacijos relė","ARCZEM-3F","vnt.",null,null,"vnt.",{"$f":"'GM aktas'!F134","v":0},1,0,null,0]
["Dujine relė","BF 80/Q","vnt.",null,null,"vnt.",{"$f":"'GM aktas'!F135","v":0},1,0,null,0]
["Dujine relė","BR 80","vnt.",null,null,"vnt.",{"$f":"'GM aktas'!F136","v":0},1,0,null,0]
["Srautinė relė","RC 25","vnt.",null,null,"vnt.",{"$f":"'GM aktas'!F137","v":0},1,0,null,0]
["Mikroelektroninė relė","SIPROTEC 7SJ45","vnt.",null,null,"vnt.",{"$f":"'GM aktas'!F138","v":0},1,0,null,0]
["MRA terminalas","REF 541","vnt.",null,null,"vnt.",{"$f":"'GM aktas'!F139","v":0},1,0,null,0]
["MRA terminalas","REF 543","vnt.",null,null,"vnt.",{"$f":"'GM aktas'!F140","v":0},1,0,null,0]
["MRA terminalas","REF 545","vnt.",null,null,"vnt.",{"$f":"'GM aktas'!F141","v":0},1,0,null,0]
["Maitinimo blokas","BPT-1002","vnt.",null,null,"vnt.",{"$f":"'GM aktas'!F142","v":0},1,0,null,0]
["Izoliacinė alyva naudota I lygio",null,"kg.",22101000720009,null,"kg.",{"$f":"'GM aktas'!F143","v":0},1,0,null,0]
["Izoliacinė alyva naudota II lygio",null,"kg.",22101000720010,null,"kg.",{"$f":"'GM aktas'!F144","v":0},1,0,null,0]
["35kV skyrikliai (lauko tipo), su tvirtinimo aikštele",null,"vnt.",null,"Be izoliatorių","vnt.",{"$f":"'GM aktas'!F145","v":0},6.3,0,null,0]
["10kV reklouzerio valdymo spinta",null,"vnt.",null,null,"vnt.",{"$f":"'GM aktas'!F146","v":0},1,0,null,0]
["10kV reklouzeris (lauko tipo jungtuvas)",null,"vnt.",null,null,"vnt.",{"$f":"'GM aktas'!F147","v":0},1,0,null,0]
["35kV reklouzerio valdymo spinta",null,"vnt.",null,null,"vnt.",{"$f":"'GM aktas'!F148","v":0},1,0,null,0]
["35kV reklouzeris (lauko tipo jungtuvas)",null,"vnt.",null,null,"vnt.",{"$f":"'GM aktas'!F149","v":0},1,0,null,0]
["10-0,4 kV modulinė transformatorinė su dviem galios transformatoriais",null,"vnt.",null,"Su įrenginiais ir su pamatu (be galios transformatoriaus)","vnt.",{"$f":"'GM aktas'!F150","v":0},550.79999999999995,0,null,0]
["10-0,4 kV modulinė transformatorinė su vienu galios transformatorium",null,"vnt.",null,"Su įrenginiais ir su pamatu (be galios transformatoriaus)","vnt.",{"$f":"'GM aktas'!F151","v":0},293.39999999999998,0,null,0]
["10 kV Trumpo jungimo indikatoriai",null,"vnt.",null,null,"vnt.",{"$f":"'GM aktas'!F152","v":0},1,0,null,0]
["10 kV Atkabikliai (vienfazei jungtuvai)",null,"vnt.",null,null,"vnt.",{"$f":"'GM aktas'!F153","v":0},1,0,null,0]
["TSPĮ spinta (pilnos komplektacijos)",null,"vnt.",null,"Spinta ir visa joje esanti įranga","vnt.",{"$f":"'GM aktas'!F154","v":0},1,0,null,0]
["0,4 kV fazių balansavimo įrenginys",null,"vnt.",null,"Su (prie atramos) tvirtinimo elementais","vnt.",{"$f":"'GM aktas'!F155","v":0},483.6,0,null,0]
["0,4 kV įtampos reguliatorius",null,"vnt.",null,"Su (prie atramos) tvirtinimo elementais","vnt.",{"$f":"'GM aktas'!F156","v":0},141.05000000000001,0,null,0]
[null,null,null,null,null,null,{"$f":"SUM(G12:G142)","v":0},null,{"$f":"SUM(I12:I142)","v":0}]

{"sheet":"Darbinis","index":2,"n_rows":117,"n_cols":15,"rows_kept":117,"cut":false,"hidden":true,"merged":[]}
["Grįžtamųjų medžiagų atsiradimo priežastis: ",null,null,null,"Rangos darbų sutarties Nr."]
["pasirinkti",null,null,null,"pasirinkti",null,null,null,"Nutrauktos darbų sutartys",null,null,null,null,"Elektra ir Co UAB","40410/530586"]
["2525002 Įrenginių likvidavimas",null,null,null,null,"iš II etapo",null,null,null,null,null,null,null,"Elektra ir Co UAB","40410/530457"]
["6111007 Medžiagų nurašymas",null,null,null,null,null,null,null,"Apšvietimas UAB","40410/591698","iš IlI etapo",null,null,"Elektra ir Co UAB","40410/530421"]
[null,null,null,null,null,null,null,null,"Apšvietimas UAB","40410/591716","iš IlI etapo",null,null,"Elektra ir Co UAB","40410/530200"]
[null,null,null,"ATP Baltic UAB","40410/591349","iš II etapo",null,null,"Elektra ir Co UAB","40410/591711","iš IlI etapo",null,null,"Elektra ir Co UAB","40410/522371"]
[null,null,null,"Elektra ir Co UAB","40410/591346","iš II etapo",null,null,"EXTO UAB","40410/591710","iš IlI etapo",null,null,"Elektra ir Co UAB","40410/522343"]
[null,null,null,null,null,null,null,null,"Klaipėdos energetika AB","40410/591342","iš II etapo",null,null,"Elektra ir Co UAB","40410/522344"]
[null,null,null,null,null,null,null,null,null,null,null,null,null,"Elektra ir Co UAB","40410/521660"]
[null,null,null,null,null,null,null,null,null,null,null,null,null,"Elektra ir Co UAB","40410/521624"]
[null,null,null,null,null,null,null,null,null,null,null,null,null,"Elektra ir Co UAB","40410/521426"]
[null,null,null,null,null,null,null,null,null,null,null,null,null,"Elektra ir Co UAB","40410/521377"]
[null,null,null,null,null,null,null,null,null,null,null,null,null,"Elektra ir Co UAB","40410/521376"]
["pasirinkti",null,null,null,null,null,null,null,null,null,null,null,null,"Elektra ir Co UAB","40410/521199"]
["A Žilinskio ir Ko UAB",null,null,null,null,null,null,null,null,null,null,null,null,"Elektra ir Co UAB","40410/521234"]
["Alkesta UAB","Vitalijus Januševičius",40250,null,null,null,null,null,null,null,null,null,null,"Elektra ir Co UAB","40410/591346"]
["Anykščių energetinė statyba UAB",null,null,"Elektrifikacijos darbai UAB","40410/521619",null,null,null,null,null,null,null,null,"Elektra ir Co UAB","40410/591715"]
["APS grupė UAB",null,null,"Elektrifikacijos darbai UAB","40410/591353","iš II etapo",null,null,null,null,null,null,null,"Elektra ir Co UAB","40410/591699"]
["Apšvietimas UAB",null,null,"Elektros tinklas UAB","40410/522243",null,null,null,null,null,null,null,null,"Elektra ir Co UAB","40410/591701"]
["Aremsa UAB",null,null,"Elektros tinklas UAB","40410/522022",null,null,null,null,null,null,null,null,"Elektra ir Co UAB","40410/591706"]
["ATP Baltic UAB",null,null,"Elektros tinklas UAB","40410/591344","iš II etapo",null,null,null,null,null,null,null,"Elektra ir Co UAB","40410/591702"]
["Bosleta UAB",null,null,"Elektros tinklas UAB","40410/511650","iš II etapo",null,null,null,null,null,null,null,"Elektra ir Co UAB","40410/591718"]
["Elektra ir Co UAB",null,null,null,null,"iš IlI etapo",null,null,null,null,null,null,null,"Elektra ir Co UAB","40410/591703"]
["Elektra UAB",null,null,"Klaipėdos energetika AB","40410/521604","iš IlI etapo",null,null,null,null,null,null,null,"Elektra ir Co UAB","40410/501495"]
["Elektrifikacijos darbai UAB",null,null,"Klaipėdos energetika AB","40410/521375","Naujas, vietoj nutraukto",null,null,null,null,null,null,null,"Elektra ir Co UAB","40410/591697"]
["Elektrifikacijos paslaugos UAB",null,null,"Klaipėdos energetika AB","40410/511415","Naujas, vietoj nutraukto",null,null,null,null,null,null,null,"Elektra ir Co UAB","40410/511425"]
["Elektro LT UAB","Techninis prižiūrėtojas","Skyrius","Klaipėdos energetika AB","40410/591332","iš II etapo",null,null,null,null,null,null,null,"Elektra ir Co UAB","40410/511429"]
["Elektromontuotojas UAB","Aleksandras Pozniakovas",47031,"Klaipėdos energetika AB","40410/591343","iš II etapo",null,null,null,null,null,null,null,"Elektra ir Co UAB","40410/511932"]
["Elektros darbai UAB","Algimantas Barkus",47031,"Klaipėdos energetika AB","40410/591347","iš II etapo",null,null,null,null,null,null,null,"Elektra ir Co UAB","40410/512225"]
["Elektros pajėgos UAB","Algirdas Ruzveltas",43033,"Klaipėdos energetika AB","40410/591345","iš II etapo",null,null,null,null,null,null,null,"Elektra ir Co UAB","40410/520137"]
["Elektros tinklas UAB","Algis Mikelionis",46031,"Klaipėdos energetika AB","40410/591342","iš II etapo",null,null,"TETAS UAB","40410/530254",null,null,null,"Elektra ir Co UAB","40410/520171"]
["Elektros tinklų statyba AB","Algis Sutkaitis",42033,"Klaipėdos energetika AB","40410/521233",null,null,null,"TETAS UAB","40410/530008",null,null,null,"Elektra ir Co UAB","40410/520855"]
["Elektrovatas UAB","Alius Giedraitis",46031,null,null,null,null,null,"TETAS UAB","40410/522421"]
["Elektrovoltas UAB","Almantas Subačius",47031,"Vilniaus energetinė statyba AB","40410/591351","iš II etapo",null,null,"TETAS UAB","40410/522196"]
["Elmava UAB","Andrius Oleinikas",42033,null,null,"iš II etapo",null,null,"TETAS UAB","40410/521979","iš II etapo"]
["Elmonta UAB","Antanas Magelinskas",45031,null,null,"iš II etapo",null,null,"TETAS UAB","40410/521659","iš II etapo"]
["Elmova UAB","Arnas Januškonis",46031,null,null,"iš II etapo",null,null,"TETAS UAB","40410/511442 "]
["Elvaradas UAB","Artūras Kmieliauskas",42031,null,null,"iš IlI etapo",null,null,"TETAS UAB","40410/591335"]
["Energetikos ranga UAB","Arūnas Rumša",42031,null,null,"iš IlI etapo",null,null,"TETAS UAB","40410/591340"]
["Energetikos tinklų institutas AB","Arvydas Klapatauskas",43031,"EXTO UAB","40410/521658","Naujas, vietoj nutraukto",null,null,"TETAS UAB","40410/511490"]
["Energijos skirstymo operatorius AB","Arvydas Skardžius",45031,"EXTO UAB","40410/591708","iš IlI etapo",null,null,"TETAS UAB","40410/511646"]
["Energika UAB","Dalia Petrauskienė",43033,"Kugeta UAB","40410/501555","Naujas, vietoj nutraukto"]
["EnergoLT UAB","Dalius Vaižmužis",45031,"Energo LT UAB","40410/501535","Naujas, vietoj nutraukto",null,null,"Elmova UAB","40410/530239"]
["Energostatika UAB","Darius Virvilas",42033,"Energo LT UAB","40410/521374",null,null,null,"Elmova UAB","40410/522019"]
["Eresta UAB","Donatas Mačerinskas",40270,null,null,null,null,null,"Elmova UAB","40410/521618"]
["ES Energy UAB","Egidijus Zasčiurinskas",40220,null,null,null,null,null,"Elmova UAB","40410/521606"]
["Exto UAB","Evaldas Alimas",43033,null,null,null,null,null,"Elmova UAB","40410/511650"]
["Fisanta UAB","Gediminas Kubilius",46031,null,null,null,null,null,"Elmova UAB","40410/511796"]
["Hidro Inžinerija UAB","Gintaras Krencius",43031]
["Indastrus UAB","Gintautas Kaminskas",45031]
["Jarkesta UAB","Gintautas Taparauskas",42031]
["Kalistara UAB","Jevgenijus Čaikinas",47031,null,null,null,null,null,"Vytrita UAB","40410/530383"]
["Klaipėdos energetika AB","Justas Marčiukaitis",42033,null,null,null,null,null,"Vytrita UAB","40410/522369"]
["Kugeta UAB","Martynas Šeškauskis",43033,null,null,null,null,null,"Vytrita UAB","40410/521783"]
["Labas GAS UAB","Virginijus Jurkšaitis",45031,"Energika, UAB","40410/511693",null,null,null,"Vytrita UAB","40410/521605"]
["Neiluva UAB","Rimas Lazickas",45031,null,null,null,null,null,"Vytrita UAB","40410/521601"]
["Nekta IĮ","Rimgaudas Kreivėnas",46031,null,null,null,null,null,"Vytrita UAB","40410/591352"]
["Pažangi energetika UAB","Virginijus Norkus",43031,null,null,null,null,null,"Vytrita UAB","40410/591336"]
["Šiaulių Rymonta UAB","Romualdas Leimontas",45032,"Energika UAB","40410/521373",null,null,null,"Vytrita UAB","40410/591339"]
["Statkorpas AB","Rita Barkauskienė",43036,null,null,null,null,null,"Vytrita UAB","40410/591717"]
["Stiemo UAB","Rolanas Jočys",42033,"Energika UAB","40410/530252",null,null,null,"Vytrita UAB","40410/591719"]
["Telekomservisas UAB","Saulius Urbanavičius",47031,"Energika UAB","40410/521192",null,null,null,"Vytrita UAB","40410/501553"]
["TETAS UAB","Stasys Guobys",47031,"Energika UAB","40410/591333",null,null,null,"Vytrita, UAB","40410/510675"]
["Vadema UAB","Tomas Vaicekavičius",42031,"Energika UAB","40410/591720",null,null,null,"Vytrita, UAB","40410/510555"]
["Vakarų energetika UAB","Vaidotas Vaitkus",43033,"Energika UAB","40410/591713",null,null,null,"Vytrita, UAB","40410/510562"]
["Vilniaus energetinė statyba AB","Valdas Perkauskas",42031,"Energika UAB","40410/501494",null,null,null,"Vytrita UAB","40410/511129"]
["Vytmarca MB","Valentas Strigūnas",43031,"Energika UAB","40410/501517",null,null,null,"Vytrita UAB","40410/511114"]
["Vytrita UAB","Vidas Zmitrys",45031,"Energika, UAB","40410/510557",null,null,null,"Vytrita UAB","40410/511414"]
["Žemaitijos energetika UAB","Vigandas Adomavičius",47031,"Energika, UAB","40410/510547",null,null,null,"Vytrita UAB","40410/511413"]
["Žilinskis ir Co UAB","Virginijus Čepulis",45031,"Energika, UAB","40410/511672",null,null,null,"Vytrita UAB","40410/520017"]
[null,"Vytautas Bagdonas",46031,"Vakarų energetika, UAB","40410/510546",null,null,null,"Vytrita UAB","40410/520020"]
[null,"Vytautas Kavaliauskas",46031,"Vakarų energetika, UAB","40410/520160",null,null,null,"Vytrita UAB","40410/520041"]
[null,"Vytautas Lažaunykas",46031,null,null,null,null,null,"Vytrita UAB","40410/520701"]
[null,"Vytautas Liubomirskas",45031,null,null,null,null,null,"Vytrita UAB","40410/521302"]
[null,"Kitas",null,null,null,null,null,null,null,null,null,"Vadema, UAB","40410/530714"]
[null,null,null,null,null,null,null,null,null,null,null,"Vadema, UAB","40410/522348"]
[null,null,null,"Energostatika, UAB","40410/510561",null,null,null,null,null,null,"Vadema, UAB","40410/521617"]
[null,null,null,"Energostatika, UAB","40410/521216",null,null,null,null,null,null,"Vadema, UAB","40410/510549"]
[null,null,null,"Energostatika, UAB","40410/522247",null,null,null,null,null,null,"Vadema, UAB","40410/511192"]
[null,null,null,"Energetikos ranga, UAB","40410/510556",null,null,null,null,null,null,"Vadema, UAB","40410/521202"]
[]
[null,null,null,null,null,null,null,null,"Elektrovoltas UAB","40410/530709"]
[null,null,null,"Elektromontuotojas UAB","40410/530560",null,null,null,"Elektrovoltas UAB","40410/530534"]
[null,null,null,"Elektromontuotojas UAB","40410/521380",null,null,null,"Elektrovoltas UAB","40410/520021"]
[null,null,null,"Elektromontuotojas UAB","40410/591350","iš II etapo"]
[null,null,null,"Elektromontuotojas UAB","40410/591705","iš IlI etapo"]
[null,null,null,"Elektromontuotojas UAB","40410/511072"]
[null,null,null,"Elektromontuotojas UAB","40410/511822"]
[null,null,null,"Elektromontuotojas UAB","40410/521300",null,null,null,null,null,null,"APS grupė UAB","40410/530253"]
[null,null,null,"Elektromontuotojas UAB","40410/521299",null,null,null,null,null,null,"APS grupė UAB","40410/530259"]
[]
[null,null,null,null,null,null,null,null,"Elektrifikacijos paslaugos UAB","40410/520035"]
[null,null,null,"Fisanta UAB","40410/511191"]
[null,null,null,"Fisanta UAB","40410/511189"]
[]
[]
[null,null,null,"Elektros pajėgos UAB","40410/530382"]
[null,null,null,"Elektros pajėgos UAB","40410/511190"]
[null,null,null,"Elektros pajėgos UAB","40410/520940",null,null,null,"Indastrus UAB","40410/520036"]
[null,null,null,null,null,null,null,null,"Indastrus UAB","40410/520376"]
[]
[null,null,null,"Elektra UAB","40410/511126"]
[]
[]
[]
[]
[null,null,null,"Bosleta UAB","40410/511193",null,null,null,"Apšvietimas UAB","40410/520012"]
[null,null,null,null,null,null,null,null,"Apšvietimas UAB","40410/521301"]
[]
[]
[]
[]
[]
[null,null,null,null,null,null,null,null,"Anykščių energetinė statyba UAB","40410/530716"]
[null,null,null,null,null,null,null,null,"Anykščių energetinė statyba UAB","40410/591341"]
[null,null,null,null,null,null,null,null,"Anykščių energetinė statyba, UAB","40410/510548"]
[null,null,null,null,null,null,null,null,"Anykščių energetinė statyba, UAB","40410/521201"]